bitfinex/quotes_SOLUSD_20220216
["timestamp","ask_amount","ask_price","bid_price","bid_amount"]
[1645021986804,6.0,99.666,99.572,100.5]
[1645021987010,2.76415162,99.677,99.578,100.5]
[1645021987211,2.76415162,99.677,99.58,100.5]
[1645021987408,2.76415162,99.682,99.58,107.35]
[1645021987605,2.76415162,99.689,99.586,100.5]
[1645021987810,2.76415162,99.694,99.588,100.5]
[1645021988005,2.76415162,99.694,99.594,100.5]
[1645021988204,2.76415162,99.708,99.597,49.64]
[1645021988408,2.76415162,99.703,99.57,12.05]
[1645021988606,6.0,99.698,99.565,14.7226]
[1645021988804,106.20490596,99.697,99.565,14.7226]
[1645021989005,2.76415162,99.693,99.565,14.7226]
[1645021989204,100.5,99.689,99.565,14.7226]
[1645021989406,0.25,99.679,99.567,150.14]
[1645021990814,0.25,99.679,99.564,15.1109]
[1645021990815,0.25,99.679,99.53,15.0053]
[1645021991013,100.5,99.677,99.531,100.5]
[1645021991211,2.76415162,99.674,99.531,100.5]
[1645021991417,100.5,99.659,99.5,14.9807]
[1645021991616,2.76415162,99.652,99.5,14.9807]
[1645021991812,100.5,99.639,99.5,14.9807]
[1645021992012,100.5,99.629,99.501,100.5]
[1645021992212,100.5,99.619,99.501,100.5]
[1645021992415,108.75,99.619,99.501,100.5]
[1645021992814,108.75,99.619,99.45,12.05]
[1645021993018,100.5,99.615,99.451,100.5]
[1645021993217,100.5,99.599,99.451,100.5]
[1645021993418,100.5,99.599,99.453,100.5]
[1645021993419,108.06,99.599,99.453,100.5]
[1645021993615,100.5,99.597,99.455,100.5]
[1645021993815,100.5,99.597,99.454,49.64]
[1645021994116,100.5,99.597,99.455,100.5]
[1645021994517,100.5,99.597,99.454,49.64]
[1645021994717,122.9433803,99.597,99.454,49.64]
[1645021994919,15.0723,99.56,99.454,49.64]
[1645021995117,15.0723,99.56,99.455,100.5]
[1645021995719,12.05,99.57,99.455,100.5]
[1645021996118,12.05,99.59,99.455,100.5]
[1645021996718,100.5,99.589,99.455,100.5]
[1645021996946,100.5,99.579,99.454,49.64]
[1645021997149,100.5,99.579,99.421,15.2173]
[1645021997347,100.5,99.569,99.421,15.2173]
[1645021997552,12.05,99.56,99.421,15.2173]
[1645021997947,12.05,99.56,99.422,100.5]
[1645021998159,12.05,99.56,99.424,100.5]
[1645021998349,12.05,99.56,99.426,100.5]
[1645021998747,12.05,99.56,99.432,100.5]
[1645021998951,27.1232,99.56,99.434,100.5]
[1645021999548,100.5,99.559,99.438,100.5]
[1645021999747,27.1232,99.56,99.444,100.5]
[1645021999955,27.1232,99.56,99.451,100.5]
[1645021999956,12.05,99.56,99.451,100.5]
[1645022000149,12.05,99.58,99.455,100.5]
[1645022000350,12.05,99.6,99.455,100.5]
[1645022000753,20.35353486,99.599,99.459,100.5]
[1645022000949,20.35353486,99.599,99.463,100.5]
[1645022001149,20.35353486,99.599,99.481,100.5]
[1645022001554,27.1172,99.6,99.485,100.5]
[1645022002452,12.05,99.6,99.491,100.5]
[1645022003455,12.05,99.6,99.501,100.5]
[1645022003657,12.05,99.6,99.48,14.6931]
[1645022003658,12.05,99.62,99.505,100.5]
[1645022003854,2.76415162,99.63,99.505,100.5]
[1645022003855,12.05,99.63,99.505,100.5]
[1645022004556,12.05,99.63,99.504,49.64]
[1645022004557,27.1117,99.63,99.511,100.5]
[1645022004758,6.0,99.62,99.511,100.5]
[1645022004954,18.05,99.62,99.511,100.5]
[1645022005760,33.1133,99.62,99.51,15.0624]
[1645022006156,0.25,99.61,99.51,15.0624]
[1645022006361,12.3,99.61,99.51,15.0624]
[1645022006757,12.3,99.61,99.511,100.5]
[1645022006963,12.3,99.61,99.521,100.5]
[1645022007158,12.05,99.61,99.521,100.5]
[1645022008558,0.25,99.6,99.521,100.5]
[1645022008758,12.05,99.61,99.521,100.5]
[1645022010262,0.25,99.6,99.521,100.5]
[1645022011363,12.05,99.61,99.521,100.5]
[1645022011876,12.05,99.61,99.531,100.5]
[1645022012660,0.29622152,99.639,99.531,100.5]
[1645022013061,20.43914401,99.638,99.531,100.5]
[1645022013262,20.43914401,99.638,99.54,15.0582]
[1645022013464,120.93914401,99.638,99.531,100.5]
[1645022013661,6.0,99.628,99.531,100.5]
[1645022014166,0.25,99.618,99.531,100.5]
[1645022014666,20.43914401,99.617,99.531,100.5]
[1645022015267,0.25,99.618,99.531,100.5]
[1645022016470,20.4665236,99.617,99.531,100.5]
[1645022016665,20.4665236,99.617,99.532,5.021]
[1645022017868,20.4665236,99.617,99.531,100.5]
[1645022018870,20.4665236,99.627,99.531,100.5]
[1645022019070,20.4665236,99.627,99.53,15.0602]
[1645022019270,100.5,99.626,99.53,15.0602]
[1645022019471,106.2075023,99.626,99.51,15.0627]
[1645022019671,106.2075023,99.626,99.46,5.91264461]
[1645022019672,0.25,99.616,99.475,15.3452]
[1645022019872,2.76415162,99.602,99.46,5.91264461]
[1645022020071,12.05,99.59,99.46,21.05104461]
[1645022020274,12.05,99.59,99.461,100.5]
[1645022020473,20.4665236,99.589,99.463,100.5]
[1645022020673,20.4665236,99.589,99.491,100.5]
[1645022021675,12.05,99.59,99.494,49.64]
[1645022022275,20.47468633,99.589,99.494,49.64]
[1645022022676,0.25,99.579,99.494,49.64]
[1645022023278,12.05,99.59,99.494,49.64]
[1645022023477,12.05,99.6,99.494,49.64]
[1645022023681,2.76415162,99.618,99.495,2.27777998]
[1645022023978,2.76415162,99.632,99.503,100.5]
[1645022024181,20.4694572,99.617,99.541,100.5]
[1645022024480,2.76415162,99.631,99.541,100.5]
[1645022024881,20.4694572,99.63,99.541,100.5]
[1645022025081,26.17658399,99.63,99.541,100.5]
[1645022025281,26.17658399,99.63,99.551,100.5]
[1645022025282,20.4694572,99.63,99.551,100.5]
[1645022025482,2.76415162,99.655,99.551,100.5]
[1645022025681,2.76415162,99.657,99.553,100.5]
[1645022025882,6.0,99.645,99.559,100.5]
[1645022026081,6.0,99.645,99.563,100.5]
[1645022026384,2.76415162,99.658,99.571,150.14]
[1645022026580,2.76415162,99.661,99.571,150.14]
[1645022026781,2.76415162,99.662,99.571,150.14]
[1645022027183,2.76415162,99.666,99.571,150.14]
[1645022027482,2.76415162,99.666,99.59,15.0511]
[1645022027682,12.05,99.68,99.59,15.0511]
[1645022027683,2.76415162,99.668,99.59,15.0511]
[1645022027883,2.44017527,99.664,99.571,150.14]
[1645022028084,5.20432689,99.664,99.571,150.14]
[1645022028284,2.76415162,99.66,99.571,150.14]
[1645022028491,2.76415162,99.658,99.571,150.14]
[1645022028685,2.76415162,99.66,99.571,150.14]
[1645022028890,2.76415162,99.659,99.571,150.14]
[1645022029085,2.76415162,99.66,99.571,150.14]
[1645022029287,2.76415162,99.659,99.571,150.14]
[1645022029886,2.76415162,99.658,99.581,100.5]
[1645022030288,2.76415162,99.656,99.581,100.5]
[1645022030901,2.76415162,99.654,99.581,100.5]
[1645022031100,6.25,99.67,99.581,100.5]
[1645022031101,2.76415162,99.655,99.581,100.5]
[1645022031301,2.76415162,99.658,99.581,100.5]
[1645022031504,6.25,99.67,99.581,100.5]
[1645022031505,2.76415162,99.656,99.581,100.5]
[1645022032002,2.76415162,99.655,99.581,100.5]
[1645022032205,2.76415162,99.654,99.581,100.5]
[1645022032402,2.76415162,99.654,99.59,15.0518]
[1645022032602,2.76415162,99.657,99.59,15.0518]
[1645022032802,2.76415162,99.66,99.59,15.0518]
[1645022033003,2.76415162,99.657,99.59,15.0518]
[1645022033204,2.76415162,99.658,99.59,15.0518]
[1645022033602,2.76415162,99.657,99.59,15.0518]
[1645022034005,2.76415162,99.652,99.57,15.0538]
[1645022034207,6.0,99.642,99.54,50.1836]
[1645022034404,108.64645387,99.638,99.49,12.05]
[1645022034605,14.81415162,99.63,99.49,27.3882]
[1645022034804,8.47043022,99.629,99.49,27.3882]
[1645022035004,2.76415162,99.627,99.491,100.5]
[1645022035405,19.22138498,99.626,99.495,100.5]
[1645022035605,5.7062786,99.625,99.499,100.5]
[1645022035807,24.92766358,99.625,99.499,100.5]
[1645022036004,5.7062786,99.624,99.53,15.0598]
[1645022036205,22.16351196,99.624,99.53,15.0598]
[1645022036406,22.16351196,99.624,99.531,100.5]
[1645022036603,5.7062786,99.623,99.531,100.5]
[1645022037003,5.7062786,99.627,99.531,100.5]
[1645022037203,2.76415162,99.628,99.531,100.5]
[1645022037404,22.23407163,99.626,99.531,100.5]
[1645022037604,5.7062786,99.625,99.531,100.5]
[1645022037806,22.23407163,99.625,99.542,49.64]
[1645022038005,16.52779303,99.625,99.545,100.5]
[1645022038306,12.05,99.63,99.545,100.5]
[1645022038505,2.76415162,99.637,99.545,100.5]
[1645022038705,3.06037314,99.639,99.545,100.5]
[1645022038905,2.76415162,99.637,99.56,15.0565]
[1645022039104,5.70654163,99.638,99.56,15.0565]
[1645022039105,0.25,99.629,99.56,15.0565]
[1645022040004,5.7066941,99.628,99.56,15.0565]
[1645022040606,5.7066941,99.628,99.561,100.5]
[1645022041005,5.7066941,99.638,99.571,100.5]
[1645022041207,0.29622152,99.639,99.571,100.5]
[1645022042010,0.29622152,99.639,99.583,100.5]
[1645022042208,0.29622152,99.639,99.585,100.5]
[1645022042407,0.29622152,99.639,99.589,100.5]
[1645022042607,0.29622152,99.639,99.593,100.5]
[1645022042808,0.29622152,99.639,99.56,12.05]
[1645022042809,0.29622152,99.639,99.595,100.5]
[1645022043810,0.29622152,99.639,99.601,100.5]
[1645022044013,0.29622152,99.639,99.6,15.0484]
[1645022044613,0.29622152,99.639,99.527,5.019]
[1645022044813,0.29622152,99.639,99.52,0.47]
[1645022045012,0.29622152,99.639,99.58,15.0525]
[1645022046723,0.29622152,99.639,99.564,49.64]
[1645022046915,0.29622152,99.639,99.46,12.91264461]
[1645022046916,5.70654318,99.638,99.54,50.1842]
[1645022047117,2.76415162,99.636,99.516,49.64]
[1645022047315,2.76415162,99.635,99.516,49.64]
[1645022047715,16.52990252,99.634,99.523,100.5]
[1645022047914,19.29405414,99.634,99.525,100.5]
[1645022048114,5.70654318,99.633,99.525,100.5]
[1645022048517,16.52990252,99.632,99.525,100.5]
[1645022048716,5.70654318,99.631,99.525,100.5]
[1645022049015,2.76415162,99.627,99.54,15.0597]
[1645022049418,16.52990252,99.626,99.54,15.0597]
[1645022049621,5.70654318,99.625,99.54,15.0597]
[1645022049818,100.5,99.624,99.54,15.0597]
[1645022050122,100.5,99.624,99.46,5.91264461]
[1645022050123,100.5,99.614,99.47,27.2731]
[1645022050320,100.5,99.599,99.489,10.49321373]
[1645022050517,100.5,99.599,99.47,27.2731]
[1645022050518,100.5,99.599,99.47,15.2231]
[1645022050720,12.05,99.6,99.47,15.2231]
[1645022051026,5.70654318,99.599,99.5,15.0655]
[1645022051220,12.05,99.6,99.501,100.5]
[1645022051423,12.05,99.6,99.48,50.2146]
[1645022051919,12.05,99.6,99.481,49.64]
[1645022052121,12.05,99.6,99.484,100.5]
[1645022052319,12.05,99.6,99.511,100.5]
[1645022053323,12.05,99.6,99.51,15.0629]
[1645022053524,5.70827123,99.599,99.51,15.0629]
[1645022054533,12.05,99.6,99.51,15.0629]
[1645022054730,16.57140768,99.598,99.51,15.0629]
[1645022055529,16.57140768,99.599,99.511,100.5]
[1645022055736,16.57140768,99.599,99.531,100.5]
[1645022055937,2.76415162,99.619,99.533,100.5]
[1645022056136,2.76415162,99.625,99.535,100.5]
[1645022056331,16.59224818,99.618,99.535,100.5]
[1645022056531,5.70737727,99.617,99.535,100.5]
[1645022056931,5.70737727,99.617,99.54,15.0594]
[1645022057132,16.59224818,99.616,99.54,15.0594]
[1645022057533,16.59224818,99.622,99.54,15.0594]
[1645022057737,5.70732431,99.621,99.54,15.0594]
[1645022057934,5.70732431,99.621,99.541,100.5]
[1645022058234,5.70732431,99.621,99.534,49.64]
[1645022058235,5.70732431,99.623,99.551,100.5]
[1645022058435,2.76415162,99.636,99.551,100.5]
[1645022058633,0.29622152,99.639,99.551,100.5]
[1645022059233,16.61643514,99.638,99.551,100.5]
[1645022059433,16.61643514,99.638,99.561,100.5]
[1645022059938,16.61643514,99.638,99.562,49.64]
[1645022060135,16.61643514,99.638,99.55,50.1792]
[1645022060136,16.61643514,99.638,99.567,100.5]
[1645022060339,16.61643514,99.638,99.573,100.5]
[1645022060538,16.61643514,99.638,99.575,100.5]
[1645022060735,16.61643514,99.638,99.58,15.053]
[1645022063137,16.61643514,99.638,99.57,15.055]
[1645022063837,16.61643514,99.638,99.571,100.5]
[1645022064040,0.29622152,99.639,99.573,100.5]
[1645022064237,0.29622152,99.639,99.576,49.64]
[1645022064461,0.29622152,99.639,99.579,100.5]
[1645022064640,0.29622152,99.639,99.582,49.64]
[1645022064837,0.29622152,99.639,99.585,100.5]
[1645022065036,0.29622152,99.639,99.591,100.5]
[1645022065640,0.29622152,99.639,99.584,49.64]
[1645022065840,0.29622152,99.639,99.587,100.5]
[1645022066044,0.29622152,99.639,99.577,47.2281]
[1645022066045,0.29622152,99.639,99.591,100.5]
[1645022066241,0.29622152,99.639,99.597,100.5]
[1645022066442,0.29622152,99.639,99.598,49.64]
[1645022066842,0.29622152,99.639,99.611,100.5]
[1645022067043,0.00622152,99.639,99.611,100.5]
[1645022067847,0.00622152,99.639,99.613,100.5]
[1645022068044,0.00622152,99.639,99.617,100.5]
[1645022068251,0.00622152,99.639,99.611,15.0005]
[1645022068252,0.00622152,99.639,99.623,100.5]
[1645022068444,0.00622152,99.639,99.629,100.5]
[1645022068645,0.00622152,99.639,99.633,100.5]
[1645022068843,0.00622152,99.639,99.637,100.5]
[1645022069044,0.35253976,99.721,99.642,100.5]
[1645022069246,2.76415162,99.739,99.644,150.14]
[1645022069544,2.76415162,99.754,99.648,100.5]
[1645022069748,2.76415162,99.754,99.661,100.5]
[1645022069950,2.76415162,99.754,99.663,100.5]
[1645022070148,2.76415162,99.754,99.662,24.1201]
[1645022070149,2.76415162,99.759,99.667,100.5]
[1645022070348,3.13740578,99.761,99.671,100.5]
[1645022070546,0.37325416,99.761,99.676,49.64]
[1645022070750,0.37325416,99.761,99.676,150.14]
[1645022070948,0.37325416,99.761,99.662,24.1201]
[1645022071147,0.25,99.748,99.662,24.1201]
[1645022072172,6.0,99.746,99.662,24.1201]
[1645022072573,0.25,99.748,99.662,24.1201]
[1645022073371,3.35368958,99.756,99.663,100.5]
[1645022073670,0.58953796,99.756,99.663,100.5]
[1645022073869,0.58953796,99.756,99.662,24.1201]
[1645022074071,11.31169656,99.76,99.664,108.0]
[1645022074272,5.70105886,99.759,99.665,49.64]
[1645022074471,5.70105886,99.759,99.669,49.64]
[1645022074771,11.99423904,99.76,99.674,100.5]
[1645022075070,5.70111173,99.759,99.676,100.5]
[1645022075369,11.99423904,99.76,99.676,100.5]
[1645022075774,11.99423904,99.76,99.675,23.3265]
[1645022075971,11.99423904,99.76,99.68,15.0379]
[1645022076772,0.25,99.75,99.68,15.0379]
[1645022077572,0.67871728,99.75,99.68,15.0379]
[1645022079076,0.42871728,99.75,99.682,100.5]
[1645022079276,0.42871728,99.75,99.69,15.0367]
[1645022083689,2.5016831,99.78,99.692,47.0]
[1645022083887,2.76415162,99.818,99.71,15.0327]
[1645022084192,12.55334022,99.82,99.711,100.5]
[1645022084193,0.00358456,99.78,99.711,100.5]
[1645022084389,0.00358456,99.78,99.717,100.5]
[1645022084590,0.00358456,99.78,99.723,100.5]
[1645022084787,0.00358456,99.78,99.725,100.5]
[1645022084986,0.00358456,99.78,99.729,100.5]
[1645022085188,0.00358456,99.78,99.741,100.5]
[1645022085388,0.00358456,99.78,99.74,15.0262]
[1645022086291,0.00358456,99.78,99.72,15.032]
[1645022086689,0.54673912,99.78,99.72,15.032]
[1645022089794,0.54315456,99.78,99.72,15.032]
[1645022090095,0.54315456,99.78,99.714,23.9853]
[1645022091898,0.54315456,99.78,99.696,23.9957]
[1645022092699,12.05,99.77,99.696,23.9957]
[1645022093099,100.5,99.769,99.684,23.0812]
[1645022093300,100.5,99.767,99.684,23.0812]
[1645022093502,5.70008874,99.768,99.684,23.0812]
[1645022093503,8.21121595,99.768,99.684,23.0812]
[1645022093699,5.70008874,99.766,99.684,23.0812]
[1645022093901,0.25,99.758,99.684,23.0812]
[1645022094104,12.05,99.75,99.636,100.5]
[1645022094307,12.05,99.75,99.642,147.14]
[1645022094704,14.56112721,99.75,99.643,49.64]
[1645022094904,15.10428177,99.75,99.643,49.64]
[1645022095105,30.14728177,99.75,99.65,15.0437]
[1645022095307,5.70104714,99.749,99.61,5.015]
[1645022095504,100.5,99.748,99.611,47.3566]
[1645022095707,2.76415162,99.735,99.611,47.3566]
[1645022095904,12.05,99.72,99.611,47.3566]
[1645022096109,12.05,99.71,99.611,47.3566]
[1645022096906,2.51112721,99.709,99.62,15.0478]
[1645022097107,2.51112721,99.709,99.621,100.5]
[1645022097306,12.05,99.71,99.621,100.5]
[1645022098327,12.05,99.71,99.63,15.0456]
[1645022099328,12.05,99.71,99.631,100.5]
[1645022099532,12.05,99.71,99.65,15.0435]
[1645022099931,12.05,99.73,99.651,100.5]
[1645022100533,27.0962,99.73,99.611,24.7873]
[1645022100736,27.0962,99.73,99.604,24.8099]
[1645022100737,2.51112721,99.729,99.604,24.8099]
[1645022100937,8.21266843,99.729,99.604,24.8099]
[1645022101135,2.76415162,99.715,99.604,24.8099]
[1645022101340,100.5,99.709,99.604,24.8099]
[1645022101535,12.05,99.7,99.604,24.8099]
[1645022101734,100.5,99.679,99.587,22.8106]
[1645022101935,100.5,99.679,99.53,31.18476172]
[1645022101936,100.5,99.669,99.559,46.6138]
[1645022102437,2.51112721,99.668,99.559,46.6138]
[1645022102938,15.0583,99.66,99.56,100.5]
[1645022103136,12.05,99.65,99.56,100.5]
[1645022104138,12.05,99.65,99.56,115.5563]
[1645022104338,12.05,99.65,99.562,100.5]
[1645022104543,12.05,99.68,99.566,100.5]
[1645022105945,12.05,99.68,99.581,100.5]
[1645022106241,0.25,99.67,99.583,100.5]
[1645022106444,0.25,99.67,99.585,100.5]
[1645022106642,12.05,99.68,99.585,100.5]
[1645022106841,12.05,99.68,99.591,100.5]
[1645022107444,12.05,99.7,99.591,100.5]
[1645022107644,1.41136546,99.704,99.593,100.5]
[1645022108143,1.41136546,99.72,99.611,100.5]
[1645022108344,1.41136546,99.725,99.611,100.5]
[1645022108544,1.41136546,99.721,99.615,100.5]
[1645022108743,1.41136546,99.719,99.618,49.64]
[1645022109146,1.41136546,99.719,99.622,49.64]
[1645022109347,1.41136546,99.719,99.626,150.14]
[1645022109547,12.05,99.72,99.626,150.14]
[1645022109748,100.5,99.719,99.626,49.64]
[1645022109947,2.51112721,99.718,99.616,22.5311]
[1645022110150,1.41136546,99.712,99.616,22.5311]
[1645022110445,12.05,99.7,99.616,22.5311]
[1645022110646,12.05,99.69,99.586,23.0209]
[1645022110850,0.25,99.68,99.586,123.5209]
[1645022111048,0.25,99.68,99.586,23.0209]
[1645022111247,12.05,99.67,99.586,23.0209]
[1645022111652,20.42,99.67,99.52,18.85304332]
[1645022111849,103.01112721,99.669,99.526,208.8878]
[1645022112348,2.51112721,99.668,99.533,100.5]
[1645022112549,2.51112721,99.668,99.541,100.5]
[1645022112748,2.51112721,99.668,99.543,100.5]
[1645022112950,2.51112721,99.668,99.533,71.9604]
[1645022112951,2.51112721,99.668,99.545,100.5]
[1645022113248,2.76415162,99.703,99.544,49.64]
[1645022113249,2.51112721,99.682,99.547,100.5]
[1645022113449,1.41136546,99.699,99.561,100.5]
[1645022113649,12.05,99.7,99.6,15.0498]
[1645022114251,12.05,99.7,99.56,12.05]
[1645022114252,12.05,99.7,99.601,102.8462678]
[1645022114452,534.59274864,99.71,99.601,102.8462678]
[1645022114654,534.59274864,99.71,99.621,49.64]
[1645022114850,534.59274864,99.71,99.623,49.64]
[1645022115356,1.41136546,99.719,99.623,49.64]
[1645022115553,1.41136546,99.715,99.623,49.64]
[1645022115759,12.05,99.72,99.623,49.64]
[1645022115760,1.41136546,99.719,99.623,49.64]
[1645022116053,100.5,99.719,99.623,49.64]
[1645022116254,12.05,99.72,99.63,15.046]
[1645022116453,100.5,99.719,99.63,15.046]
[1645022116657,100.5,99.719,99.622,47.9605]
[1645022116854,0.25,99.709,99.622,47.9605]
[1645022117054,100.75,99.709,99.602,2.3462678]
[1645022117255,100.5,99.699,99.58,15.053]
[1645022117457,1.41136546,99.683,99.58,15.053]
[1645022117655,12.05,99.67,99.566,100.5]
[1645022118256,12.05,99.67,99.581,100.5]
[1645022118556,12.05,99.67,99.585,100.5]
[1645022119957,12.05,99.67,99.59,15.0526]
[1645022120557,12.05,99.67,99.591,100.5]
[1645022120757,1.41136546,99.702,99.591,100.5]
[1645022120960,14.56112721,99.71,99.591,100.5]
[1645022121959,100.5,99.709,99.61,15.0484]
[1645022122161,0.25,99.7,99.61,15.0484]
[1645022123159,0.25,99.7,99.611,49.0729]
[1645022123962,12.05,99.69,99.611,49.0729]
[1645022125165,103.01112721,99.689,99.56,14.9788]
[1645022125565,2.51112721,99.688,99.56,14.9788]
[1645022125764,2.51112721,99.688,99.559,15.2673]
[1645022125968,2.51112721,99.688,99.56,46.9868]
[1645022126366,1.41136546,99.685,99.56,46.9868]
[1645022126566,1.41136546,99.686,99.56,46.9868]
[1645022126765,2.51112721,99.684,99.56,46.9868]
[1645022126970,12.05,99.67,99.57,15.0558]
[1645022127768,12.05,99.67,99.56,46.9868]
[1645022127968,12.05,99.67,99.561,5.018]
[1645022128277,12.05,99.67,99.58,15.0544]
[1645022128468,12.05,99.67,99.581,24.1356]
[1645022128970,14.56112721,99.67,99.581,24.1356]
[1645022129168,100.5,99.669,99.581,24.1356]
[1645022129369,15.0572,99.66,99.581,24.1356]
[1645022129571,27.1072,99.66,99.581,24.1356]
[1645022130167,100.5,99.659,99.581,24.1356]
[1645022130371,100.5,99.649,99.527,49.64]
[1645022130572,1.41136546,99.663,99.52,50.1963]
[1645022130573,100.5,99.639,99.521,46.3534]
[1645022130777,12.05,99.64,99.522,100.5]
[1645022130975,12.05,99.64,99.523,5.021]
[1645022131174,12.05,99.64,99.522,100.5]
[1645022131373,12.05,99.64,99.526,100.5]
[1645022131673,12.05,99.64,99.528,100.5]
[1645022131875,12.05,99.64,99.541,100.5]
[1645022132106,12.05,99.64,99.542,24.8629]
[1645022132498,2.51112721,99.639,99.542,24.8629]
[1645022133299,12.05,99.64,99.542,24.8629]
[1645022133800,12.05,99.66,99.543,51.99255434]
[1645022134002,12.05,99.66,99.544,100.5]
[1645022134299,12.05,99.66,99.55,15.0587]
[1645022134702,11.05,99.66,99.55,15.0587]
[1645022134903,11.05,99.66,99.551,49.64]
[1645022135102,11.05,99.66,99.58,15.0543]
[1645022135900,11.05,99.66,99.581,46.9135]
[1645022137203,2.51112721,99.659,99.581,46.9135]
[1645022137601,103.01112721,99.659,99.581,46.9135]
[1645022137801,0.25,99.65,99.532,49.64]
[1645022138000,100.5,99.639,99.507,2.82713326]
[1645022138201,100.5,99.639,99.54,15.0593]
[1645022138600,2.51112721,99.638,99.54,15.0593]
[1645022139602,27.1107,99.64,99.55,15.0588]
[1645022140102,27.1107,99.64,99.551,47.5941]
[1645022140305,29.62182721,99.64,99.551,47.5941]
[1645022140502,100.5,99.639,99.551,47.5941]
[1645022140704,29.62182721,99.64,99.551,47.5941]
[1645022141703,12.05,99.64,99.551,47.5941]
[1645022142104,12.05,99.64,99.552,5.019]
[1645022142310,12.05,99.64,99.552,105.519]
[1645022142606,1.41136546,99.658,99.552,100.5]
[1645022142804,12.05,99.66,99.561,100.5]
[1645022143004,12.05,99.66,99.565,100.5]
[1645022143806,12.05,99.66,99.58,15.0535]
[1645022145208,12.05,99.66,99.581,22.6566]
[1645022146211,100.5,99.659,99.58,15.0535]
[1645022146415,0.25,99.65,99.525,49.64]
[1645022146616,12.05,99.64,99.525,49.64]
[1645022146812,100.5,99.639,99.544,23.8663]
[1645022147314,103.01112721,99.639,99.544,23.8663]
[1645022147611,100.5,99.629,99.544,23.8663]
[1645022147812,100.5,99.619,99.544,23.8663]
[1645022148011,12.05,99.62,99.544,23.8663]
[1645022149611,100.5,99.619,99.544,23.8663]
[1645022150013,27.1126,99.62,99.544,23.8663]
[1645022150210,12.05,99.62,99.544,23.8663]
[1645022152214,2.51112721,99.619,99.544,23.8663]
[1645022152616,12.05,99.62,99.544,23.8663]
[1645022154517,12.05,99.62,99.56,15.0575]
[1645022154718,12.05,99.64,99.56,15.0575]
[1645022154919,1.41136546,99.653,99.56,15.0575]
[1645022155121,1.41136546,99.666,99.561,51.99883125]
[1645022155318,1.41136546,99.667,99.561,51.99883125]
[1645022155519,1.41136546,99.666,99.562,2.35883125]
[1645022155719,1.41136546,99.666,99.58,15.0532]
[1645022156019,1.41136546,99.667,99.58,15.0532]
[1645022156719,1.41136546,99.666,99.58,15.0532]
[1645022157120,1.41136546,99.667,99.581,22.5099]
[1645022157321,1.41136546,99.665,99.581,22.5099]
[1645022157623,1.41136546,99.666,99.59,15.053]
[1645022157820,1.41136546,99.667,99.59,15.053]
[1645022158421,1.41136546,99.668,99.591,23.7509]
[1645022158723,2.51112721,99.667,99.591,23.7509]
[1645022158925,0.25,99.66,99.591,23.7509]
[1645022159119,12.3,99.66,99.591,23.7509]
[1645022160126,2.51112721,99.659,99.581,22.5099]
[1645022160325,1.41136546,99.643,99.581,22.5099]
[1645022160522,12.05,99.63,99.581,22.5099]
[1645022160924,12.05,99.63,99.531,15.4178]
[1645022160925,100.5,99.629,99.531,15.4178]